{"text_format":"1","workbook":"xlsx","n_sheets":1,"sheets":["申込書"],"not_rendered":{"charts":0,"images":0,"macros":1,"external_links":0,"defined_names":1,"comments":0,"pivot_tables":0},"unopened":[],"bounds":{"document_bytes":16777216,"sheet_cells":100000,"rows_first":2000,"rows_last":500,"rows_between":2000,"halvings":0,"cell_chars":16384,"cell_head_chars":4096},"cells_cut":0,"cells_raw":0,"read":"whole","date_system":"1900"}

{"sheet":"申込書","index":0,"n_rows":115,"n_cols":49,"rows_kept":115,"cut":false,"hidden":false,"merged":[[10,18,12,18],[10,24,12,24],[18,4,18,5],[18,12,18,16],[12,6,12,11],[12,12,12,16],[10,6,10,11],[11,6,11,11],[17,26,17,29],[12,20,12,23],[11,12,11,16],[18,20,18,23],[12,26,12,29],[16,20,16,23],[11,26,11,29],[18,26,18,29],[14,6,14,16],[15,4,15,16],[8,0,12,0],[14,0,18,0],[21,3,21,12],[21,13,21,14],[17,4,17,5],[17,12,17,16],[12,4,12,5],[16,6,16,11],[10,1,10,3],[16,1,16,3],[3,5,3,29],[4,5,4,29],[22,13,22,14],[23,3,23,7],[23,13,23,14],[16,18,18,18],[16,24,18,24],[10,26,10,29],[5,20,5,22],[17,20,17,23],[38,1,38,29],[40,9,40,14],[40,16,40,19],[40,20,40,27],[26,3,26,7],[36,16,36,17],[36,18,36,22],[36,23,36,27],[28,3,28,7],[28,13,28,14],[36,28,36,29],[5,1,5,4],[6,1,6,4],[10,12,10,16],[15,18,15,29],[25,3,25,7],[25,13,25,14],[24,3,24,7],[24,13,24,14],[16,26,16,29],[7,20,8,29],[1,5,2,18],[1,19,2,21],[1,22,2,29],[6,20,6,22],[25,18,25,22],[25,28,25,29],[5,23,5,29],[6,23,6,29],[9,18,9,29],[25,23,25,27],[10,20,10,23],[11,20,11,23],[8,6,8,16],[16,4,16,5],[22,28,22,29],[23,16,23,17],[23,18,23,22],[23,28,23,29],[17,6,17,11],[21,28,21,29],[22,16,22,17],[22,18,22,22],[22,23,22,27],[21,16,21,17],[21,18,21,27],[25,8,25,12],[16,12,16,16],[26,16,26,17],[25,1,25,2],[26,1,26,2],[21,1,21,2],[22,3,22,7],[22,8,22,12],[20,16,20,30],[24,28,24,29],[33,3,33,7],[33,8,33,12],[33,13,33,14],[34,13,34,14],[26,8,26,12],[30,13,30,14],[27,3,27,7],[27,13,27,14],[27,8,27,12],[27,28,27,29],[17,1,17,3],[36,3,36,7],[36,8,36,12],[36,13,36,14],[23,23,23,27],[24,16,24,17],[24,18,24,22],[24,23,24,27],[32,13,32,14],[29,16,29,17],[29,18,29,22],[29,23,29,27],[29,28,29,29],[26,18,26,22],[26,23,26,27],[26,28,26,29],[27,16,27,17],[27,18,27,22],[27,23,27,27],[26,13,26,14],[31,28,31,29],[28,18,28,22],[28,23,28,27],[28,16,28,17],[29,3,29,7],[29,13,29,14],[30,3,30,7],[28,8,28,12],[28,28,28,29],[25,16,25,17],[32,28,32,29],[33,16,33,17],[33,18,33,22],[33,23,33,27],[33,28,33,29],[30,28,30,29],[30,16,30,17],[32,23,32,27],[32,16,32,17],[36,1,36,2],[35,1,35,2],[35,3,35,7],[34,1,34,2],[34,23,34,27],[35,8,35,12],[35,13,35,14],[30,1,30,2],[31,1,31,2],[32,1,32,2],[29,8,29,12],[30,8,30,12],[31,3,31,7],[31,8,31,12],[32,8,32,12],[27,1,27,2],[28,1,28,2],[33,1,33,2],[22,1,22,2],[18,6,18,11],[23,8,23,12],[24,8,24,12],[20,1,20,15],[29,1,29,2],[32,3,32,7],[1,1,2,4],[3,1,4,4],[23,1,23,2],[24,1,24,2],[11,4,11,5],[11,1,11,3],[12,1,12,3],[18,1,18,3],[14,1,15,3],[14,4,14,5],[34,28,34,29],[30,23,30,27],[32,18,32,22],[30,18,30,22],[34,3,34,7],[31,16,31,17],[31,18,31,22],[31,23,31,27],[34,8,34,12],[31,13,31,14],[40,1,40,2],[0,0,0,29],[35,16,35,17],[35,18,35,22],[35,23,35,27],[35,28,35,29],[8,4,8,5],[10,4,10,5],[34,16,34,17],[34,18,34,22],[5,5,5,13],[5,14,5,19],[6,5,6,13],[6,14,6,19],[8,1,9,3],[9,4,9,16]]}
["令和6年度岡山県秋季大会ハンドボール競技参加申込書                                  \n",null,null,null,null,null,null,null,null,null,null,null,null,null,null,null,null,null,null,null,null,null,null,null,null,null,null,null,null,null,null,null,null,null,null,null,null,null,null,null,null,null,null,{"$f":"F$2","v":0},{"$f":"VLOOKUP($AR$1,$B$46:$C$57,2,FALSE)","v":{"$error":"#N/A"}},{"$f":"G9","v":0},{"$f":"G11","v":0},{"$f":"G12","v":0},{"$f":"G13","v":0}]
[null,"学校名",null,null,null,null,null,null,null,null,null,null,null,null,null,null,null,null,null,"TEL",null,null,{"$f":"VLOOKUP(F2,B46:E57,4,FALSE)","v":{"$error":"#N/A"}}]
[]
[null,"学校所在地",null,null,null,{"$f":"VLOOKUP(F2,B46:F57,5,FALSE)","v":{"$error":"#N/A"}},null,null,null,null,null,null,null,null,null,null,null,null,null,null,null,null,null,null,null,null,null,null,null,null,null,null,null,null,"校名",{"$f":"F2","v":0},null,null,null,null,null,null,1,{"$f":"F$2","v":0},{"$f":"VLOOKUP($AR$1,$B$46:$C$57,2,FALSE)","v":{"$error":"#N/A"}},{"$f":"D23&I23","v":""}]
[null,null,null,null,null,{"$f":"VLOOKUP(F2,B46:E57,3,FALSE)","v":{"$error":"#N/A"}},null,null,null,null,null,null,null,null,null,null,null,null,null,null,null,null,null,null,null,null,null,null,null,null,null,null,null,null,"男子監督",{"$f":"G9","v":0},null,null,null,null,null,null,2,0,{"$error":"#N/A"},{"$f":"D24&I24","v":""}]
[null,"男子引率者",null,null,null,null,null,null,null,null,null,null,null,null,null,null,null,null,null,null,"※任命権者",null,null,null,null,null,null,null,null,null,null,null,null,null,"男子Ｂ",{"$f":"G11","v":0},null,null,null,null,null,null,3,0,{"$error":"#N/A"},""]
[null,"女子引率者",null,null,null,null,null,null,null,null,null,null,null,null,null,null,null,null,null,null,"※任命権者",null,null,null,null,null,null,null,null,null,null,null,null,null,"男子Ｃ",{"$f":"G12","v":0},null,null,null,null,null,null,4,0,{"$error":"#N/A"},""]
[null,null,null,null,null,null,null,null,null,null,null,null,null,null,null,null,null,null,null,null,"※引率が部活動指導員の場合記入",null,null,null,null,null,null,null,null,null,null,null,null,null,"男子Ｄ",{"$f":"G13","v":0},null,null,null,null,null,null,5,0,{"$error":"#N/A"},""]
["男子 ","役員（A)\n（監督）",null,null,"氏名",null,null,null,null,null,null,null,null,null,null,null,null,null,null,null,null,null,null,null,null,null,null,null,null,null,null,null,null,null,"男子ＣＰ①",{"$f":"U11","v":0},null,null,null,null,null,null,6,0,{"$error":"#N/A"},""]
[null,null,null,null,null,null,null,null,null,null,null,null,null,null,null,null,null,null,"男子ユニフォームの色",null,null,null,null,null,null,null,null,null,null,null,null,null,null,null,"男子ＣＰ②",{"$f":"U12","v":0},null,null,null,null,null,null,7,0,{"$error":"#N/A"},""]
[null,"役員（B)",null,null,"氏名",null,null,null,null,null,null,null,null,null,null,null,null,null,"CP","①",null,null,null,null,"GK","①",null,null,null,null,null,null,null,null,"男子ＣＰ③",{"$f":"U13","v":0},null,null,null,null,null,null,8,0,{"$error":"#N/A"},""]
[null,"役員（C)",null,null,"氏名",null,null,null,null,null,null,null,null,null,null,null,null,null,null,"②",null,null,null,null,null,"②",null,null,null,null,null,null,null,null,"男子ＧＫ①",{"$f":"AA11","v":0},null,null,null,null,null,null,9,0,{"$error":"#N/A"},""]
[null,"役員（D)",null,null,"氏名",null,null,null,null,null,null,null,null,null,null,null,null,null,null,"③",null,null,null,null,null,"③",null,null,null,null,null,null,null,null,"男子ＧＫ②",{"$f":"AA12","v":0},null,null,null,null,null,null,10,0,{"$error":"#N/A"},""]
[null,null,null,null,null,null,null,null,null,null,null,null,null,null,null,null,null,null,null,null,null,null,null,null,null,null,null,null,null,null,null,null,null,null,"男子ＧＫ③",{"$f":"AA13","v":0},null,null,null,null,null,null,11,0,{"$error":"#N/A"},""]
["女子","役員（A)\n（監督）",null,null,"氏名",null,null,null,null,null,null,null,null,null,null,null,null,null,null,null,null,null,null,null,null,null,null,null,null,null,null,null,null,null,"女子監督",{"$f":"G15","v":0},null,null,null,null,null,null,12,0,{"$error":"#N/A"},""]
[null,null,null,null,null,null,null,null,null,null,null,null,null,null,null,null,null,null,"女子ユニフォームの色",null,null,null,null,null,null,null,null,null,null,null,null,null,null,null,"女子Ｂ",{"$f":"G17","v":0},null,null,null,null,null,null,13,0,{"$error":"#N/A"},{"$f":"D35&I35","v":""}]
[null,"役員（B)",null,null,"氏名",null,null,null,null,null,null,null,null,null,null,null,null,null,"CP","①",null,null,null,null,"GK","①",null,null,null,null,null,null,null,null,"女子Ｃ",{"$f":"G18","v":0},null,null,null,null,null,null,14,0,{"$error":"#N/A"},""]
[null,"役員（C)",null,null,"氏名",null,null,null,null,null,null,null,null,null,null,null,null,null,null,"②",null,null,null,null,null,"②",null,null,null,null,null,null,null,null,"女子Ｄ",{"$f":"G19","v":0},null,null,null,null,null,null,15,0,{"$error":"#N/A"},""]
[null,"役員（D)",null,null,"氏名",null,null,null,null,null,null,null,null,null,null,null,null,null,null,"③",null,null,null,null,null,"③",null,null,null,null,null,null,null,null,"女子ＣＰ①",{"$f":"U17","v":0}]
[null,null,null,null,null,null,null,null,null,null,null,null,null,null,null,null,null,null,null,null,null,null,null,null,null,null,null,null,null,null,null,null,null,null,"女子ＣＰ②",{"$f":"U18","v":0},null,null,null,null,null,null,null,{"$f":"F$2","v":0},{"$f":"VLOOKUP($AR$1,$B$46:$C$57,2,FALSE)","v":{"$error":"#N/A"}},{"$f":"G15","v":0},{"$f":"G17","v":0},{"$f":"G18","v":0},{"$f":"G19","v":0}]
[null,"男　　　　　　　子",null,null,null,null,null,null,null,null,null,null,null,null,null,null,"女　　　　　　　子",null,null,null,null,null,null,null,null,null,null,null,null,null,null,null,null,null,"女子ＣＰ③",{"$f":"U19","v":0},null,null,null,null,null,null,null,null,null,""]
[null,"背番号",null,"選　　　　手　　　　名",null,null,null,null,null,null,null,null,null,"学年",null,"備考","背番号",null,"選　　　　手　　　　名",null,null,null,null,null,null,null,null,null,"学年",null,"備考",null,null,null,"女子ＧＫ①",{"$f":"AA17","v":0},null,null,null,null,null,null,1,{"$f":"F$2","v":0},{"$f":"VLOOKUP($AR$1,$B$46:$C$57,2,FALSE)","v":{"$error":"#N/A"}},{"$f":"S23&X23","v":""}]
[null,1,null,null,null,null,null,null,null,null,null,null,null,null,null,null,1,null,null,null,null,null,null,null,null,null,null,null,null,null,null,null,null,null,"女子ＧＫ②",{"$f":"AA18","v":0},null,null,null,null,null,null,2,0,{"$error":"#N/A"},{"$f":"S24&X24","v":""}]
[null,2,null,null,null,null,null,null,null,null,null,null,null,null,null,null,2,null,null,null,null,null,null,null,null,null,null,null,null,null,null,null,null,null,"女子ＧＫ③",{"$f":"AA19","v":0},null,null,null,null,null,null,3,0,{"$error":"#N/A"},""]
[null,3,null,null,null,null,null,null,null,null,null,null,null,null,null,null,3,null,null,null,null,null,null,null,null,null,null,null,null,null,null,null,null,null,"男子苗字",{"$f":"D23","v":0},null,null,null,null,null,null,4,0,{"$error":"#N/A"},""]
[null,4,null,null,null,null,null,null,null,null,null,null,null,null,null,null,4,null,null,null,null,null,null,null,null,null,null,null,null,null,null,null,null,null,null,0,null,null,null,null,null,null,5,0,{"$error":"#N/A"},""]
[null,5,null,null,null,null,null,null,null,null,null,null,null,null,null,null,5,null,null,null,null,null,null,null,null,null,null,null,null,null,null,null,null,null,null,0,null,null,null,null,null,null,6,0,{"$error":"#N/A"},""]
[null,6,null,null,null,null,null,null,null,null,null,null,null,null,null,null,6,null,null,null,null,null,null,null,null,null,null,null,null,null,null,null,null,null,null,0,null,null,null,null,null,null,7,0,{"$error":"#N/A"},""]
[null,7,null,null,null,null,null,null,null,null,null,null,null,null,null,null,7,null,null,null,null,null,null,null,null,null,null,null,null,null,null,null,null,null,null,0,null,null,null,null,null,null,8,0,{"$error":"#N/A"},""]
[null,8,null,null,null,null,null,null,null,null,null,null,null,null,null,null,8,null,null,null,null,null,null,null,null,null,null,null,null,null,null,null,null,null,null,0,null,null,null,null,null,null,9,0,{"$error":"#N/A"},""]
[null,9,null,null,null,null,null,null,null,null,null,null,null,null,null,null,9,null,null,null,null,null,null,null,null,null,null,null,null,null,null,null,null,null,null,0,null,null,null,null,null,null,10,0,{"$error":"#N/A"},""]
[null,10,null,null,null,null,null,null,null,null,null,null,null,null,null,null,10,null,null,null,null,null,null,null,null,null,null,null,null,null,null,null,null,null,null,0,null,null,null,null,null,null,11,0,{"$error":"#N/A"},""]
[null,11,null,null,null,null,null,null,null,null,null,null,null,null,null,null,11,null,null,null,null,null,null,null,null,null,null,null,null,null,null,null,null,null,null,0,null,null,null,null,null,null,12,0,{"$error":"#N/A"},""]
[null,12,null,null,null,null,null,null,null,null,null,null,null,null,null,null,12,null,null,null,null,null,null,null,null,null,null,null,null,null,null,null,null,null,null,0,null,null,null,null,null,null,13,0,{"$error":"#N/A"},""]
[null,13,null,null,null,null,null,null,null,null,null,null,null,null,null,null,13,null,null,null,null,null,null,null,null,null,null,null,null,null,null,null,null,null,null,0,null,null,null,null,null,null,14,0,{"$error":"#N/A"},""]
[null,14,null,null,null,null,null,null,null,null,null,null,null,null,null,null,14,null,null,null,null,null,null,null,null,null,null,null,null,null,null,null,null,null,null,0,null,null,null,null,null,null,15,0,{"$error":"#N/A"},""]
[null,15,null,null,null,null,null,null,null,null,null,null,null,null,null,null,15,null,null,null,null,null,null,null,null,null,null,null,null,null,null,null,null,null,null,0]
[null,null,null,null,null,null,null,null,null,null,null,null,null,null,null,null,null,null,null,null,null,null,null,null,null,null,null,null,null,null,null,null,null,null,null,0]
[null,"　上記の者は、本大会参加についての保護者の同意を得ているので、参加を申込みます。また、個人情報のうち、大会運営に必要な項目の記載と報道機関への記録の提供について本人及び保護者の同意を得ています。（記載の同意が得られない場合は、該当選手の背番号に○をつけてください）",null,null,null,null,null,null,null,null,null,null,null,null,null,null,null,null,null,null,null,null,null,null,null,null,null,null,null,null,null,null,null,null,null,0]
[null,null,null,null,null,null,null,null,null,null,null,null,null,null,null,null,null,null,null,null,null,null,null,null,null,null,null,null,null,null,null,null,null,null,"男子名前",{"$f":"I23","v":0}]
[null,"令和",null,6,"年",null,"月",null,"日",{"$f":"F2","v":0},null,null,null,null,null,null,"校長",null,null,null,null,null,null,null,null,null,null,null,"印",null,null,null,null,null,null,0]
[null,null,null,null,null,null,null,null,null,null,null,null,null,null,null,null,null,null,null,null,null,null,null,null,null,null,null,null,null,null,null,null,null,null,null,0]
[null,null,null,null,null,null,null,null,null,null,null,null,null,null,null,null,null,null,null,null,null,null,null,null,null,null,null,null,null,null,null,null,null,null,null,0]
[null,null,null,null,null,null,null,null,null,null,null,null,null,null,null,null,null,null,null,null,null,null,null,null,null,null,null,null,null,null,null,null,null,null,null,0]
[null,null,null,null,null,null,null,null,null,null,null,null,null,null,null,null,null,null,null,null,null,null,null,null,null,null,null,null,null,null,null,null,null,null,null,0]
[null,"倉敷市立琴浦中学校","琴浦中","倉敷市児島下の町8丁目6−6","086-472-4459","〒711-0906",null,null,null,null,null,null,null,null,null,null,null,null,null,null,null,null,null,null,null,null,null,null,null,null,null,null,null,null,null,0]
[null,"倉敷市立東中学校","倉敷東中","倉敷市平田155-100","086-422-6050","〒710-0003",null,null,null,null,null,null,null,null,null,null,null,null,null,null,null,null,null,null,null,null,null,null,null,null,null,null,null,null,null,0]
[null,"倉敷市立北中学校","倉敷北中","倉敷市中庄505","086-462-6341","〒710-0016",null,null,null,null,null,null,null,null,null,null,null,null,null,null,null,null,null,null,null,null,null,null,null,null,null,null,null,null,null,0]
[null,"倉敷市立南中学校","倉敷南中","倉敷市西富井1387","086-422-4670","〒710-0845",null,null,null,null,null,null,null,null,null,null,null,null,null,null,null,null,null,null,null,null,null,null,null,null,null,null,null,null,null,0]
[null,"倉敷市立福田南中学校","福田南中","倉敷市福田町古新田711-4","086-455-5671","〒712-8046",null,null,null,null,null,null,null,null,null,null,null,null,null,null,null,null,null,null,null,null,null,null,null,null,null,null,null,null,null,0]
[null,"倉敷市立多津美中学校","多津美中","倉敷市有城986","086-429-1222","〒710-0031",null,null,null,null,null,null,null,null,null,null,null,null,null,null,null,null,null,null,null,null,null,null,null,null,null,null,null,null,null,0]
[null,"倉敷市立下津井中学校","下津井中","倉敷市下津井吹上140","086-479-9049","〒711-0926",null,null,null,null,null,null,null,null,null,null,null,null,null,null,null,null,null,null,null,null,null,null,null,null,null,null,null,null,null,0]
[null,"岡山県立倉敷天城中学校","倉敷天城中","倉敷市藤戸町天城269","086-429-3494","〒710-0132",null,null,null,null,null,null,null,null,null,null,null,null,null,null,null,null,null,null,null,null,null,null,null,null,null,null,null,null,null,0]
[null,"総社市立総社西中学校","総社西中","総社市駅前1-10-1","0866-92-0317","〒719-1136",null,null,null,null,null,null,null,null,null,null,null,null,null,null,null,null,null,null,null,null,null,null,null,null,null,null,null,null,null,0]
[null,"岡山市立操南中学校","操南中","岡山市中区藤崎130-2","086-277-7281","〒702-8006",null,null,null,null,null,null,null,null,null,null,null,null,null,null,null,null,null,null,null,null,null,null,null,null,null,null,null,null,"女子苗字",{"$f":"S23","v":0}]
[null,"真庭市立落合中学校","落合中","真庭市下方625","0867-52-1106","〒719-3155",null,null,null,null,null,null,null,null,null,null,null,null,null,null,null,null,null,null,null,null,null,null,null,null,null,null,null,null,null,0]
[null,"下津井・倉敷天城中学校","下天",null,null,null,null,null,null,null,null,null,null,null,null,null,null,null,null,null,null,null,null,null,null,null,null,null,null,null,null,null,null,null,null,0]
[null,null,null,null,null,null,null,null,null,null,null,null,null,null,null,null,null,null,null,null,null,null,null,null,null,null,null,null,null,null,null,null,null,null,null,0]
[null,null,null,null,null,null,null,null,null,null,null,null,null,null,null,null,null,null,null,null,null,null,null,null,null,null,null,null,null,null,null,null,null,null,null,0]
[null,null,null,null,null,null,null,null,null,null,null,null,null,null,null,null,null,null,null,null,null,null,null,null,null,null,null,null,null,null,null,null,null,null,null,0]
[null,null,null,null,null,null,null,null,null,null,null,null,null,null,null,null,null,null,null,null,null,null,null,null,null,null,null,null,null,null,null,null,null,null,null,0]
[null,null,null,null,null,null,null,null,null,null,null,null,null,null,null,null,null,null,null,null,null,null,null,null,null,null,null,null,null,null,null,null,null,null,null,0]
[null,null,null,null,null,null,null,null,null,null,null,null,null,null,null,null,null,null,null,null,null,null,null,null,null,null,null,null,null,null,null,null,null,null,null,0]
[null,null,null,null,null,null,null,null,null,null,null,null,null,null,null,null,null,null,null,null,null,null,null,null,null,null,null,null,null,null,null,null,null,null,null,0]
[null,null,null,null,null,null,null,null,null,null,null,null,null,null,null,null,null,null,null,null,null,null,null,null,null,null,null,null,null,null,null,null,null,null,null,0]
[null,null,null,null,null,null,null,null,null,null,null,null,null,null,null,null,null,null,null,null,null,null,null,null,null,null,null,null,null,null,null,null,null,null,null,0]
[null,null,null,null,null,null,null,null,null,null,null,null,null,null,null,null,null,null,null,null,null,null,null,null,null,null,null,null,null,null,null,null,null,null,null,0]
[null,null,null,null,null,null,null,null,null,null,null,null,null,null,null,null,null,null,null,null,null,null,null,null,null,null,null,null,null,null,null,null,null,null,null,0]
[null,null,null,null,null,null,null,null,null,null,null,null,null,null,null,null,null,null,null,null,null,null,null,null,null,null,null,null,null,null,null,null,null,null,null,0]
[null,null,null,null,null,null,null,null,null,null,null,null,null,null,null,null,null,null,null,null,null,null,null,null,null,null,null,null,null,null,null,null,null,null,"女子名前",{"$f":"X23","v":0}]
[null,null,null,null,null,null,null,null,null,null,null,null,null,null,null,null,null,null,null,null,null,null,null,null,null,null,null,null,null,null,null,null,null,null,null,0]
[null,null,null,null,null,null,null,null,null,null,null,null,null,null,null,null,null,null,null,null,null,null,null,null,null,null,null,null,null,null,null,null,null,null,null,0]
[null,null,null,null,null,null,null,null,null,null,null,null,null,null,null,null,null,null,null,null,null,null,null,null,null,null,null,null,null,null,null,null,null,null,null,0]
[null,null,null,null,null,null,null,null,null,null,null,null,null,null,null,null,null,null,null,null,null,null,null,null,null,null,null,null,null,null,null,null,null,null,null,0]
[null,null,null,null,null,null,null,null,null,null,null,null,null,null,null,null,null,null,null,null,null,null,null,null,null,null,null,null,null,null,null,null,null,null,null,0]
[null,null,null,null,null,null,null,null,null,null,null,null,null,null,null,null,null,null,null,null,null,null,null,null,null,null,null,null,null,null,null,null,null,null,null,0]
[null,null,null,null,null,null,null,null,null,null,null,null,null,null,null,null,null,null,null,null,null,null,null,null,null,null,null,null,null,null,null,null,null,null,null,0]
[null,null,null,null,null,null,null,null,null,null,null,null,null,null,null,null,null,null,null,null,null,null,null,null,null,null,null,null,null,null,null,null,null,null,null,0]
[null,null,null,null,null,null,null,null,null,null,null,null,null,null,null,null,null,null,null,null,null,null,null,null,null,null,null,null,null,null,null,null,null,null,null,0]
[null,null,null,null,null,null,null,null,null,null,null,null,null,null,null,null,null,null,null,null,null,null,null,null,null,null,null,null,null,null,null,null,null,null,null,0]
[null,null,null,null,null,null,null,null,null,null,null,null,null,null,null,null,null,null,null,null,null,null,null,null,null,null,null,null,null,null,null,null,null,null,null,0]
[null,null,null,null,null,null,null,null,null,null,null,null,null,null,null,null,null,null,null,null,null,null,null,null,null,null,null,null,null,null,null,null,null,null,null,0]
[null,null,null,null,null,null,null,null,null,null,null,null,null,null,null,null,null,null,null,null,null,null,null,null,null,null,null,null,null,null,null,null,null,null,null,0]
[null,null,null,null,null,null,null,null,null,null,null,null,null,null,null,null,null,null,null,null,null,null,null,null,null,null,null,null,null,null,null,null,null,null,null,0]
[null,null,null,null,null,null,null,null,null,null,null,null,null,null,null,null,null,null,null,null,null,null,null,null,null,null,null,null,null,null,null,null,null,null,"学校代表",{"$f":"U41","v":0}]
[null,null,null,null,null,null,null,null,null,null,null,null,null,null,null,null,null,null,null,null,null,null,null,null,null,null,null,null,null,null,null,null,null,null,"男子学年",{"$f":"N23","v":0}]
[null,null,null,null,null,null,null,null,null,null,null,null,null,null,null,null,null,null,null,null,null,null,null,null,null,null,null,null,null,null,null,null,null,null,null,{"$f":"N24","v":0}]
[null,null,null,null,null,null,null,null,null,null,null,null,null,null,null,null,null,null,null,null,null,null,null,null,null,null,null,null,null,null,null,null,null,null,null,0]
[null,null,null,null,null,null,null,null,null,null,null,null,null,null,null,null,null,null,null,null,null,null,null,null,null,null,null,null,null,null,null,null,null,null,null,0]
[null,null,null,null,null,null,null,null,null,null,null,null,null,null,null,null,null,null,null,null,null,null,null,null,null,null,null,null,null,null,null,null,null,null,null,0]
[null,null,null,null,null,null,null,null,null,null,null,null,null,null,null,null,null,null,null,null,null,null,null,null,null,null,null,null,null,null,null,null,null,null,null,0]
[null,null,null,null,null,null,null,null,null,null,null,null,null,null,null,null,null,null,null,null,null,null,null,null,null,null,null,null,null,null,null,null,null,null,null,0]
[null,null,null,null,null,null,null,null,null,null,null,null,null,null,null,null,null,null,null,null,null,null,null,null,null,null,null,null,null,null,null,null,null,null,null,0]
[null,null,null,null,null,null,null,null,null,null,null,null,null,null,null,null,null,null,null,null,null,null,null,null,null,null,null,null,null,null,null,null,null,null,null,0]
[null,null,null,null,null,null,null,null,null,null,null,null,null,null,null,null,null,null,null,null,null,null,null,null,null,null,null,null,null,null,null,null,null,null,null,0]
[null,null,null,null,null,null,null,null,null,null,null,null,null,null,null,null,null,null,null,null,null,null,null,null,null,null,null,null,null,null,null,null,null,null,null,0]
[null,null,null,null,null,null,null,null,null,null,null,null,null,null,null,null,null,null,null,null,null,null,null,null,null,null,null,null,null,null,null,null,null,null,null,0]
[null,null,null,null,null,null,null,null,null,null,null,null,null,null,null,null,null,null,null,null,null,null,null,null,null,null,null,null,null,null,null,null,null,null,null,0]
[null,null,null,null,null,null,null,null,null,null,null,null,null,null,null,null,null,null,null,null,null,null,null,null,null,null,null,null,null,null,null,null,null,null,null,0]
[null,null,null,null,null,null,null,null,null,null,null,null,null,null,null,null,null,null,null,null,null,null,null,null,null,null,null,null,null,null,null,null,null,null,null,0]
[null,null,null,null,null,null,null,null,null,null,null,null,null,null,null,null,null,null,null,null,null,null,null,null,null,null,null,null,null,null,null,null,null,null,"女子学年",{"$f":"AC23","v":0}]
[null,null,null,null,null,null,null,null,null,null,null,null,null,null,null,null,null,null,null,null,null,null,null,null,null,null,null,null,null,null,null,null,null,null,null,{"$f":"AC24","v":0}]
[null,null,null,null,null,null,null,null,null,null,null,null,null,null,null,null,null,null,null,null,null,null,null,null,null,null,null,null,null,null,null,null,null,null,null,0]
[null,null,null,null,null,null,null,null,null,null,null,null,null,null,null,null,null,null,null,null,null,null,null,null,null,null,null,null,null,null,null,null,null,null,null,0]
[null,null,null,null,null,null,null,null,null,null,null,null,null,null,null,null,null,null,null,null,null,null,null,null,null,null,null,null,null,null,null,null,null,null,null,0]
[null,null,null,null,null,null,null,null,null,null,null,null,null,null,null,null,null,null,null,null,null,null,null,null,null,null,null,null,null,null,null,null,null,null,null,0]
[null,null,null,null,null,null,null,null,null,null,null,null,null,null,null,null,null,null,null,null,null,null,null,null,null,null,null,null,null,null,null,null,null,null,null,0]
[null,null,null,null,null,null,null,null,null,null,null,null,null,null,null,null,null,null,null,null,null,null,null,null,null,null,null,null,null,null,null,null,null,null,null,0]
[null,null,null,null,null,null,null,null,null,null,null,null,null,null,null,null,null,null,null,null,null,null,null,null,null,null,null,null,null,null,null,null,null,null,null,0]
[null,null,null,null,null,null,null,null,null,null,null,null,null,null,null,null,null,null,null,null,null,null,null,null,null,null,null,null,null,null,null,null,null,null,null,0]
[null,null,null,null,null,null,null,null,null,null,null,null,null,null,null,null,null,null,null,null,null,null,null,null,null,null,null,null,null,null,null,null,null,null,null,0]
[null,null,null,null,null,null,null,null,null,null,null,null,null,null,null,null,null,null,null,null,null,null,null,null,null,null,null,null,null,null,null,null,null,null,null,0]
[null,null,null,null,null,null,null,null,null,null,null,null,null,null,null,null,null,null,null,null,null,null,null,null,null,null,null,null,null,null,null,null,null,null,null,0]
[null,null,null,null,null,null,null,null,null,null,null,null,null,null,null,null,null,null,null,null,null,null,null,null,null,null,null,null,null,null,null,null,null,null,null,0]
[null,null,null,null,null,null,null,null,null,null,null,null,null,null,null,null,null,null,null,null,null,null,null,null,null,null,null,null,null,null,null,null,null,null,null,0]